[Event "*** SCC Grand Prix: Titled Tuesday Blitz"]
[Site "Chess.com"]
[Date "2020.06.02"]
[Round "10"]
[White "saraswathii"]
[Black "FMOlexandrProhorov"]
[Result "1-0"]
[WhiteElo "2368"]
[BlackElo "2106"]
[TimeControl "180+1"]
[EndTime "11:59:14 PDT"]
[Termination "saraswathii won on time"]

1. e4 {[%clk 0:03:00.9]} 1... c5 {[%clk 0:02:59.7]} 2. Nf3 {[%clk 0:03:00.1]}
2... e6 {[%clk 0:02:59.9]} 3. d3 {[%clk 0:03:00]} 3... Nc6 {[%clk 0:02:58.8]} 4.
g3 {[%clk 0:02:59.3]} 4... g6 {[%clk 0:02:57.8]} 5. Bg2 {[%clk 0:02:59.2]} 5...
Bg7 {[%clk 0:02:58.1]} 6. O-O {[%clk 0:02:59]} 6... d6 {[%clk 0:02:57.4]} 7. c3
{[%clk 0:02:58.9]} 7... Nge7 {[%clk 0:02:57.4]} 8. Be3 {[%clk 0:02:58.3]} 8...
O-O {[%clk 0:02:56.8]} 9. d4 {[%clk 0:02:57.8]} 9... cxd4 {[%clk 0:02:54.9]} 10.
cxd4 {[%clk 0:02:57.1]} 10... d5 {[%clk 0:02:55]} 11. e5 {[%clk 0:02:55.8]}
11... Nf5 {[%clk 0:02:54.9]} 12. Qd2 {[%clk 0:02:54.3]} 12... Qb6 {[%clk
0:02:53.4]} 13. Nc3 {[%clk 0:02:52]} 13... Na5 {[%clk 0:02:39.2]} 14. b3 {[%clk
0:02:49.5]} 14... Bd7 {[%clk 0:02:38.9]} 15. Rac1 {[%clk 0:02:41.8]} 15... Rac8
{[%clk 0:02:38.3]} 16. h4 {[%clk 0:02:35.5]} 16... Bb5 {[%clk 0:02:20.8]} 17.
Rfd1 {[%clk 0:02:32.8]} 17... a6 {[%clk 0:02:14.8]} 18. Bf4 {[%clk 0:02:28.8]}
18... Bd7 {[%clk 0:02:03.7]} 19. h5 {[%clk 0:02:17.7]} 19... Nc6 {[%clk
0:02:01.9]} 20. hxg6 {[%clk 0:01:57.4]} 20... fxg6 {[%clk 0:01:58.4]} 21. Na4
{[%clk 0:01:53.2]} 21... Qa7 {[%clk 0:01:38.1]} 22. Nc5 {[%clk 0:01:52.2]} 22...
Rcd8 {[%clk 0:01:32.1]} 23. Bg5 {[%clk 0:01:46.3]} 23... Bc8 {[%clk 0:01:30.3]}
24. Bxd8 {[%clk 0:01:45.2]} 24... Rxd8 {[%clk 0:01:29.5]} 25. Rc2 {[%clk
0:01:31.5]} 25... Rf8 {[%clk 0:01:19.4]} 26. Qe2 {[%clk 0:01:21.2]} 26... Bh6
{[%clk 0:01:09.2]} 27. g4 {[%clk 0:01:10.3]} 27... Nfe7 {[%clk 0:01:04.2]} 28.
g5 {[%clk 0:01:09.1]} 28... Bg7 {[%clk 0:01:02.5]} 29. Bh3 {[%clk 0:01:07.9]}
29... Nf5 {[%clk 0:01:01.9]} 30. Bxf5 {[%clk 0:01:07]} 30... Rxf5 {[%clk
0:00:58.9]} 31. Qe3 {[%clk 0:01:04.1]} 31... Qb6 {[%clk 0:00:51.3]} 32. Nh4
{[%clk 0:00:56.5]} 32... Rf8 {[%clk 0:00:48.4]} 33. Ng2 {[%clk 0:00:53.1]} 33...
Qd8 {[%clk 0:00:40.7]} 34. Nxa6 {[%clk 0:00:42.4]} 34... Ne7 {[%clk 0:00:29.9]}
35. Nc5 {[%clk 0:00:39.1]} 35... Nf5 {[%clk 0:00:28.3]} 36. Qc1 {[%clk
0:00:37.4]} 36... b6 {[%clk 0:00:23.8]} 37. Na4 {[%clk 0:00:36]} 37... Bd7
{[%clk 0:00:24]} 38. Nc3 {[%clk 0:00:30.6]} 38... h6 {[%clk 0:00:22.3]} 39. Ne2
{[%clk 0:00:27.5]} 39... hxg5 {[%clk 0:00:20.9]} 40. Ng3 {[%clk 0:00:27.2]}
40... Nh4 {[%clk 0:00:19.7]} 41. Nxh4 {[%clk 0:00:26]} 41... gxh4 {[%clk
0:00:20]} 42. Nf1 {[%clk 0:00:26]} 42... Kh7 {[%clk 0:00:20.1]} 43. Rc3 {[%clk
0:00:25.3]} 43... Bh6 {[%clk 0:00:19.6]} 44. Qc2 {[%clk 0:00:25.6]} 44... Qg5+
{[%clk 0:00:19.1]} 45. Kh1 {[%clk 0:00:24.6]} 45... Rf4 {[%clk 0:00:15.1]} 46.
Rc7 {[%clk 0:00:21.9]} 46... Rf7 {[%clk 0:00:12.6]} 47. Nh2 {[%clk 0:00:20]}
47... Qh5 {[%clk 0:00:09.2]} 48. Rg1 {[%clk 0:00:18.4]} 48... h3 {[%clk
0:00:08.5]} 49. a4 {[%clk 0:00:17]} 49... Be8 {[%clk 0:00:08.2]} 50. Rxf7+
{[%clk 0:00:16.3]} 50... Bxf7 {[%clk 0:00:09.1]} 51. Ng4 {[%clk 0:00:16.9]}
51... h2 {[%clk 0:00:07.5]} 52. Nf6+ {[%clk 0:00:16.6]} 52... Kh8 {[%clk
0:00:05.9]} 53. Nxh5 {[%clk 0:00:16.9]} 53... gxh5 {[%clk 0:00:06.1]} 54. Rg2
{[%clk 0:00:15.9]} 54... Bf4 {[%clk 0:00:04.7]} 55. Qc7 {[%clk 0:00:15.2]} 1-0

[Event "*** SCC Grand Prix: Titled Tuesday Blitz"]
[Site "Chess.com"]
[Date "2020.06.02"]
[Round "10"]
[White "ChelsieMonica"]
[Black "kushagramohan"]
[Result "0-1"]
[WhiteElo "2458"]
[BlackElo "2628"]
[TimeControl "180+1"]
[EndTime "11:59:15 PDT"]
[Termination "kushagramohan won by checkmate"]

1. c4 {[%clk 0:03:00.9]} 1... Nf6 {[%clk 0:02:59.8]} 2. Nf3 {[%clk 0:03:00.4]}
2... g6 {[%clk 0:03:00.2]} 3. e3 {[%clk 0:02:59.7]} 3... Bg7 {[%clk 0:03:00.2]}
4. Nc3 {[%clk 0:03:00.5]} 4... O-O {[%clk 0:03:00.6]} 5. Be2 {[%clk 0:03:00.9]}
5... d6 {[%clk 0:03:01]} 6. O-O {[%clk 0:03:01.1]} 6... Nbd7 {[%clk 0:03:01.6]}
7. h3 {[%clk 0:03:01]} 7... e5 {[%clk 0:03:01.9]} 8. b3 {[%clk 0:03:01.6]} 8...
c5 {[%clk 0:02:52.7]} 9. d4 {[%clk 0:02:57.1]} 9... e4 {[%clk 0:02:46.7]} 10.
Ne1 {[%clk 0:02:55.8]} 10... Re8 {[%clk 0:02:41.5]} 11. Bb2 {[%clk 0:02:46.2]}
11... Nb6 {[%clk 0:02:38.4]} 12. a4 {[%clk 0:02:44]} 12... a5 {[%clk 0:02:37.9]}
13. Nb5 {[%clk 0:02:42.8]} 13... Qe7 {[%clk 0:02:04.7]} 14. Qd2 {[%clk
0:02:32.2]} 14... Be6 {[%clk 0:01:54.2]} 15. Rd1 {[%clk 0:02:29.4]} 15... Rad8
{[%clk 0:01:53]} 16. Qxa5 {[%clk 0:02:27.1]} 16... Nfd7 {[%clk 0:01:45.3]} 17.
Nc7 {[%clk 0:01:59.7]} 17... Rf8 {[%clk 0:01:45.1]} 18. Ba3 {[%clk 0:01:52.8]}
18... Bf5 {[%clk 0:01:24.7]} 19. g4 {[%clk 0:01:45.4]} 19... Qg5 {[%clk
0:01:19.1]} 20. Ng2 {[%clk 0:01:45.4]} 20... Kh8 {[%clk 0:00:55.5]} 21. gxf5
{[%clk 0:01:43.7]} 21... gxf5 {[%clk 0:00:56.4]} 22. f4 {[%clk 0:01:38.1]} 22...
Qg3 {[%clk 0:00:53.9]} 23. Qe1 {[%clk 0:01:36.9]} 23... Qg6 {[%clk 0:00:51.6]}
24. Kh2 {[%clk 0:01:34.5]} 24... Bf6 {[%clk 0:00:38.5]} 25. Rg1 {[%clk
0:01:33.9]} 25... Qh6 {[%clk 0:00:38.8]} 26. dxc5 {[%clk 0:01:24.8]} 26... dxc5
{[%clk 0:00:38.1]} 27. Rd6 {[%clk 0:01:21.5]} 27... Rg8 {[%clk 0:00:37.4]} 28.
Bb2 {[%clk 0:01:16.2]} 28... Nc8 {[%clk 0:00:37]} 29. Bxf6+ {[%clk 0:01:12]}
29... Nxf6 {[%clk 0:00:36.9]} 30. Rxf6 {[%clk 0:01:05.2]} 30... Qxf6 {[%clk
0:00:34.4]} 31. Nd5 {[%clk 0:01:05.3]} 31... Qb2 {[%clk 0:00:30.6]} 32. Qh4
{[%clk 0:01:00.5]} 32... Rd6 {[%clk 0:00:21.4]} 33. Bh5 {[%clk 0:00:44.1]} 33...
Rh6 {[%clk 0:00:17.7]} 34. a5 {[%clk 0:00:27]} 34... Qg7 {[%clk 0:00:15.5]} 35.
Kh1 {[%clk 0:00:25.1]} 35... Qb2 {[%clk 0:00:13.9]} 36. a6 {[%clk 0:00:24.5]}
36... bxa6 {[%clk 0:00:14]} 37. Kh2 {[%clk 0:00:24.6]} 37... a5 {[%clk
0:00:14.2]} 38. Nc7 {[%clk 0:00:24]} 38... Qxb3 {[%clk 0:00:13.3]} 39. Rd1
{[%clk 0:00:20]} 39... Qxd1 {[%clk 0:00:09.9]} 40. Bxd1 {[%clk 0:00:18.7]} 40...
Rxg2+ {[%clk 0:00:09.8]} 41. Kxg2 {[%clk 0:00:18.4]} 41... Rxh4 {[%clk
0:00:10.7]} 42. Ba4 {[%clk 0:00:18.1]} 42... Rh6 {[%clk 0:00:11]} 43. Nd5 {[%clk
0:00:18]} 43... Rd6 {[%clk 0:00:10.9]} 44. Kf2 {[%clk 0:00:16.9]} 44... Nb6
{[%clk 0:00:11.3]} 45. Nxb6 {[%clk 0:00:13.4]} 45... Rxb6 {[%clk 0:00:12.2]} 46.
Bb5 {[%clk 0:00:14]} 46... Kg7 {[%clk 0:00:11.4]} 47. Kg3 {[%clk 0:00:14.2]}
47... Kf6 {[%clk 0:00:11.8]} 48. Kh4 {[%clk 0:00:14.2]} 48... Ke7 {[%clk
0:00:12.1]} 49. Kg5 {[%clk 0:00:14.4]} 49... Rxb5 {[%clk 0:00:12.7]} 50. cxb5
{[%clk 0:00:14.2]} 50... a4 {[%clk 0:00:13.3]} 51. Kxf5 {[%clk 0:00:15.1]} 51...
a3 {[%clk 0:00:13]} 52. b6 {[%clk 0:00:16]} 52... Kd7 {[%clk 0:00:12.8]} 53. Kf6
{[%clk 0:00:16.6]} 53... Kc6 {[%clk 0:00:13]} 54. Kxf7 {[%clk 0:00:17.5]} 54...
a2 {[%clk 0:00:13.7]} 55. f5 {[%clk 0:00:18.4]} 55... a1=Q {[%clk 0:00:14.2]}
56. f6 {[%clk 0:00:19.3]} 56... Kxb6 {[%clk 0:00:14.4]} 57. Kg7 {[%clk
0:00:20.2]} 57... Qe5 {[%clk 0:00:14.1]} 58. Kh8 {[%clk 0:00:20.4]} 58... Qxf6+
{[%clk 0:00:14]} 59. Kg8 {[%clk 0:00:20.5]} 59... h5 {[%clk 0:00:14.4]} 60. h4
{[%clk 0:00:21.4]} 60... c4 {[%clk 0:00:14.5]} 61. Kh7 {[%clk 0:00:21.8]} 61...
c3 {[%clk 0:00:15.1]} 62. Kg8 {[%clk 0:00:22.7]} 62... c2 {[%clk 0:00:15.7]} 63.
Kh7 {[%clk 0:00:23.6]} 63... c1=R {[%clk 0:00:14.7]} 64. Kg8 {[%clk 0:00:24.5]}
64... Rc8+ {[%clk 0:00:14.3]} 65. Kh7 {[%clk 0:00:25.4]} 65... Rh8# {[%clk
0:00:14.9]} 0-1

[Event "*** SCC Grand Prix: Titled Tuesday Blitz"]
[Site "Chess.com"]
[Date "2020.06.02"]
[Round "10"]
[White "mr65"]
[Black "gm_rashid"]
[Result "1-0"]
[WhiteElo "2180"]
[BlackElo "2320"]
[TimeControl "180+1"]
[EndTime "11:59:23 PDT"]
[Termination "mr65 won by resignation"]

1. e4 {[%clk 0:03:00.9]} 1... e5 {[%clk 0:02:55.1]} 2. Nf3 {[%clk 0:02:59.8]}
2... Nc6 {[%clk 0:02:53.3]} 3. Bb5 {[%clk 0:02:59.4]} 3... a6 {[%clk 0:02:52.5]}
4. Ba4 {[%clk 0:02:58.1]} 4... Nf6 {[%clk 0:02:52.3]} 5. O-O {[%clk 0:02:55.8]}
5... Be7 {[%clk 0:02:52.7]} 6. Re1 {[%clk 0:02:54.8]} 6... b5 {[%clk 0:02:52.7]}
7. Bb3 {[%clk 0:02:54.8]} 7... O-O {[%clk 0:02:53.1]} 8. d4 {[%clk 0:02:53]}
8... exd4 {[%clk 0:02:49.9]} 9. e5 {[%clk 0:02:48.4]} 9... Ne8 {[%clk
0:02:49.5]} 10. c3 {[%clk 0:02:45.8]} 10... dxc3 {[%clk 0:02:43.1]} 11. Nxc3
{[%clk 0:02:44.8]} 11... d6 {[%clk 0:02:33.8]} 12. Bf4 {[%clk 0:02:12.3]} 12...
dxe5 {[%clk 0:02:20.9]} 13. Nxe5 {[%clk 0:02:10.2]} 13... Nxe5 {[%clk
0:02:17.2]} 14. Bxe5 {[%clk 0:02:08.1]} 14... Bd6 {[%clk 0:02:13.7]} 15. Ne4
{[%clk 0:01:44]} 15... Bf5 {[%clk 0:02:11.8]} 16. Nxd6 {[%clk 0:01:26.4]} 16...
Nxd6 {[%clk 0:02:05.1]} 17. Qf3 {[%clk 0:01:16.8]} 17... Bg6 {[%clk 0:01:58.2]}
18. Rad1 {[%clk 0:01:12.3]} 18... Re8 {[%clk 0:01:55]} 19. g3 {[%clk 0:01:00.4]}
19... Qd7 {[%clk 0:01:50.7]} 20. h4 {[%clk 0:00:53.9]} 20... Qf5 {[%clk
0:01:23.6]} 21. Qxf5 {[%clk 0:00:39.3]} 21... Bxf5 {[%clk 0:01:22.2]} 22. Bxd6
{[%clk 0:00:35]} 22... Rxe1+ {[%clk 0:01:20.6]} 23. Rxe1 {[%clk 0:00:34.1]}
23... cxd6 {[%clk 0:01:21.1]} 24. Re7 {[%clk 0:00:33.8]} 24... Rf8 {[%clk
0:01:01.7]} 25. Ra7 {[%clk 0:00:28.9]} 25... Be6 {[%clk 0:00:58.7]} 26. Rxa6
{[%clk 0:00:26.9]} 26... Bxb3 {[%clk 0:00:57.6]} 27. axb3 {[%clk 0:00:21.7]}
27... Rd8 {[%clk 0:00:57.1]} 28. Rb6 {[%clk 0:00:21.5]} 28... d5 {[%clk
0:00:57]} 29. Kf1 {[%clk 0:00:20.8]} 29... d4 {[%clk 0:00:55.8]} 30. Rxb5 {[%clk
0:00:20.8]} 30... d3 {[%clk 0:00:54.3]} 31. Ke1 {[%clk 0:00:20.8]} 31... g6
{[%clk 0:00:53.5]} 32. Kd2 {[%clk 0:00:20.5]} 32... Kg7 {[%clk 0:00:49.8]} 33.
Rc5 {[%clk 0:00:20.4]} 33... Rd6 {[%clk 0:00:45.8]} 34. Rc3 {[%clk 0:00:20.3]}
34... Rf6 {[%clk 0:00:45.1]} 35. f4 {[%clk 0:00:20.3]} 35... Kh6 {[%clk
0:00:41.8]} 36. Rxd3 {[%clk 0:00:20.3]} 36... Kh5 {[%clk 0:00:42.2]} 37. b4
{[%clk 0:00:20.3]} 37... Kg4 {[%clk 0:00:41.7]} 38. Kc3 {[%clk 0:00:19.9]} 38...
Rc6+ {[%clk 0:00:40.7]} 39. Kb3 {[%clk 0:00:19.1]} 39... Rb6 {[%clk 0:00:38.1]}
40. Kc4 {[%clk 0:00:18.8]} 40... Rc6+ {[%clk 0:00:37.6]} 41. Kb3 {[%clk
0:00:18.9]} 41... Rb6 {[%clk 0:00:37.4]} 42. Kc4 {[%clk 0:00:18.9]} 42... Rc6+
{[%clk 0:00:37.4]} 43. Kd5 {[%clk 0:00:18.6]} 43... Rc2 {[%clk 0:00:36.6]} 44.
b5 {[%clk 0:00:18.1]} 44... Rxb2 {[%clk 0:00:35.8]} 45. Kc6 {[%clk 0:00:17.7]}
45... Rc2+ {[%clk 0:00:34.7]} 46. Kb7 {[%clk 0:00:17]} 46... h6 {[%clk
0:00:30.4]} 47. b6 {[%clk 0:00:16.7]} 47... Kf5 {[%clk 0:00:29.4]} 48. Ka8
{[%clk 0:00:16.2]} 48... Ra2+ {[%clk 0:00:28]} 49. Kb8 {[%clk 0:00:15.2]} 49...
Ke6 {[%clk 0:00:26.7]} 50. b7 {[%clk 0:00:14.8]} 50... Ke7 {[%clk 0:00:26.5]}
51. Kc8 {[%clk 0:00:13.8]} 51... Rc2+ {[%clk 0:00:26]} 52. Kb8 {[%clk
0:00:13.5]} 52... Ra2 {[%clk 0:00:25.4]} 53. Rc3 {[%clk 0:00:13.5]} 53... Kd7
{[%clk 0:00:24.5]} 54. Rc4 {[%clk 0:00:13]} 54... Ra1 {[%clk 0:00:23.5]} 55.
Rd4+ {[%clk 0:00:12.8]} 55... Ke7 {[%clk 0:00:23.1]} 56. Kc7 {[%clk 0:00:12.8]}
56... Rc1+ {[%clk 0:00:22.9]} 57. Kb6 {[%clk 0:00:12.7]} 57... Rb1+ {[%clk
0:00:22]} 58. Kc6 {[%clk 0:00:12.8]} 58... f6 {[%clk 0:00:20.5]} 59. Rd5 {[%clk
0:00:12.1]} 59... Ke6 {[%clk 0:00:17.4]} 60. Rb5 {[%clk 0:00:11.9]} 1-0

[Event "*** SCC Grand Prix: Titled Tuesday Blitz"]
[Site "Chess.com"]
[Date "2020.06.02"]
[Round "10"]
[White "pavelalexandru07"]
[Black "Quattroporte300"]
[Result "0-1"]
[WhiteElo "2114"]
[BlackElo "2279"]
[TimeControl "180+1"]
[EndTime "11:59:24 PDT"]
[Termination "Quattroporte300 won on time"]

1. e4 {[%clk 0:03:00.9]} 1... e5 {[%clk 0:02:58.3]} 2. Nf3 {[%clk 0:03:00.4]}
2... Nc6 {[%clk 0:02:57.7]} 3. Bb5 {[%clk 0:03:00.3]} 3... a6 {[%clk 0:02:57.3]}
4. Ba4 {[%clk 0:03:00.1]} 4... Nf6 {[%clk 0:02:56.6]} 5. O-O {[%clk 0:02:59.2]}
5... Be7 {[%clk 0:02:56.8]} 6. Re1 {[%clk 0:02:58.7]} 6... b5 {[%clk 0:02:57.2]}
7. Bb3 {[%clk 0:02:58.6]} 7... O-O {[%clk 0:02:56.9]} 8. h3 {[%clk 0:02:57.8]}
8... Bb7 {[%clk 0:02:55.7]} 9. c3 {[%clk 0:02:57]} 9... d5 {[%clk 0:02:55.6]}
10. exd5 {[%clk 0:02:54.3]} 10... Nxd5 {[%clk 0:02:55.9]} 11. Nxe5 {[%clk
0:02:52.5]} 11... Nxe5 {[%clk 0:02:54.9]} 12. Rxe5 {[%clk 0:02:52.4]} 12... Nf4
{[%clk 0:02:55.3]} 13. d4 {[%clk 0:02:04.5]} 13... Nxg2 {[%clk 0:02:51.5]} 14.
d5 {[%clk 0:02:04.6]} 14... Nh4 {[%clk 0:02:48]} 15. Qd3 {[%clk 0:01:52.5]}
15... Bf6 {[%clk 0:02:35.2]} 16. Re1 {[%clk 0:01:29]} 16... Re8 {[%clk
0:02:29.5]} 17. Rxe8+ {[%clk 0:01:15.4]} 17... Qxe8 {[%clk 0:02:28.3]} 18. Be3
{[%clk 0:01:03.9]} 18... Qd7 {[%clk 0:02:13.1]} 19. Bf4 {[%clk 0:00:57.6]} 19...
Rd8 {[%clk 0:02:00.3]} 20. Nd2 {[%clk 0:00:55.5]} 20... Bxd5 {[%clk 0:01:59.3]}
21. Re1 {[%clk 0:00:27.2]} 21... g6 {[%clk 0:00:56.1]} 22. Bxd5 {[%clk
0:00:24.2]} 22... Qxd5 {[%clk 0:00:55.6]} 23. Re8+ {[%clk 0:00:16.9]} 23... Kg7
{[%clk 0:00:55.4]} 24. Rxd8 {[%clk 0:00:12.8]} 24... Qxd8 {[%clk 0:00:53.4]} 25.
Qxd8 {[%clk 0:00:11.1]} 25... Bxd8 {[%clk 0:00:53.3]} 26. Be5+ {[%clk
0:00:10.7]} 26... f6 {[%clk 0:00:51.5]} 27. Bd4 {[%clk 0:00:10]} 27... Nf5
{[%clk 0:00:51.5]} 28. Nf3 {[%clk 0:00:08.5]} 28... Nxd4 {[%clk 0:00:50.5]} 29.
Nxd4 {[%clk 0:00:09.4]} 29... Kf7 {[%clk 0:00:48.6]} 30. Nc6 {[%clk 0:00:09.5]}
30... Be7 {[%clk 0:00:45.5]} 31. Nb8 {[%clk 0:00:09.2]} 31... a5 {[%clk
0:00:42.5]} 32. Nc6 {[%clk 0:00:09.3]} 32... a4 {[%clk 0:00:42.6]} 33. Nd4
{[%clk 0:00:09.1]} 33... b4 {[%clk 0:00:41]} 34. cxb4 {[%clk 0:00:04.4]} 34...
Bxb4 {[%clk 0:00:41.4]} 35. Nc2 {[%clk 0:00:03.6]} 35... Bc5 {[%clk 0:00:38.5]}
36. Kf1 {[%clk 0:00:02.9]} 36... Ke6 {[%clk 0:00:38.7]} 37. Ke2 {[%clk
0:00:03.4]} 37... Kd5 {[%clk 0:00:39]} 38. f3 {[%clk 0:00:03.9]} 38... f5 {[%clk
0:00:39.4]} 39. Kd3 {[%clk 0:00:03.4]} 39... g5 {[%clk 0:00:34]} 40. b4 {[%clk
0:00:03.3]} 40... axb3 {[%clk 0:00:32.9]} 41. axb3 {[%clk 0:00:04.2]} 41... h5
{[%clk 0:00:31.9]} 42. b4 {[%clk 0:00:03.7]} 42... Bb6 {[%clk 0:00:31.3]} 43.
Ne1 {[%clk 0:00:01.2]} 43... c6 {[%clk 0:00:30]} 44. Nc2 {[%clk 0:00:01.2]}
44... Ke5 {[%clk 0:00:29]} 45. Ne1 {[%clk 0:00:01.3]} 45... Kf4 {[%clk
0:00:27.7]} 46. Ke2 {[%clk 0:00:01.9]} 46... Ke5 {[%clk 0:00:24.2]} 47. Nd3+
{[%clk 0:00:02.5]} 47... Kd4 {[%clk 0:00:23.4]} 48. Kd2 {[%clk 0:00:03.1]} 48...
Bc7 {[%clk 0:00:22.1]} 49. Kc2 {[%clk 0:00:03.2]} 49... Kc4 {[%clk 0:00:21.4]}
50. Kd2 {[%clk 0:00:03]} 50... Bd6 {[%clk 0:00:21.5]} 51. Ke2 {[%clk 0:00:03.2]}
51... Bxb4 {[%clk 0:00:20.6]} 52. Ne5+ {[%clk 0:00:03.4]} 52... Kd5 {[%clk
0:00:20.4]} 53. Nf7 {[%clk 0:00:03.4]} 53... Be7 {[%clk 0:00:20.2]} 54. Nh6
{[%clk 0:00:02.2]} 54... Ke6 {[%clk 0:00:18.8]} 55. Ke3 {[%clk 0:00:01.7]} 55...
c5 {[%clk 0:00:17.9]} 56. Kd3 {[%clk 0:00:01.6]} 56... Kf6 {[%clk 0:00:11.7]}
0-1

[Event "*** SCC Grand Prix: Titled Tuesday Blitz"]
[Site "Chess.com"]
[Date "2020.06.02"]
[Round "10"]
[White "Jeffinho023"]
[Black "Evgeny81"]
[Result "0-1"]
[WhiteElo "2584"]
[BlackElo "2727"]
[TimeControl "180+1"]
[EndTime "11:59:25 PDT"]
[Termination "Evgeny81 won on time"]

1. d4 {[%clk 0:03:00.9]} 1... Nf6 {[%clk 0:02:57]} 2. Nf3 {[%clk 0:03:00.6]}
2... c5 {[%clk 0:02:56.5]} 3. c3 {[%clk 0:03:00.4]} 3... e6 {[%clk 0:02:55.9]}
4. Bf4 {[%clk 0:03:00]} 4... d5 {[%clk 0:02:56.1]} 5. e3 {[%clk 0:02:57.9]} 5...
Bd6 {[%clk 0:02:56.1]} 6. Bg3 {[%clk 0:02:56.8]} 6... O-O {[%clk 0:02:55.8]} 7.
Nbd2 {[%clk 0:02:56.9]} 7... Qc7 {[%clk 0:02:55.7]} 8. Bd3 {[%clk 0:02:57]} 8...
Nbd7 {[%clk 0:02:55.7]} 9. Qe2 {[%clk 0:02:48.2]} 9... e5 {[%clk 0:02:55.1]} 10.
dxe5 {[%clk 0:02:44.8]} 10... Nxe5 {[%clk 0:02:54.4]} 11. Nxe5 {[%clk
0:02:37.4]} 11... Bxe5 {[%clk 0:02:55.3]} 12. Nf3 {[%clk 0:02:37]} 12... Bd6
{[%clk 0:02:49.9]} 13. c4 {[%clk 0:02:27.1]} 13... d4 {[%clk 0:02:44.4]} 14. O-O
{[%clk 0:02:13.4]} 14... Re8 {[%clk 0:02:38.4]} 15. Bxd6 {[%clk 0:02:09.3]}
15... Qxd6 {[%clk 0:02:38.1]} 16. Qd1 {[%clk 0:01:53.1]} 16... Bg4 {[%clk
0:02:34.8]} 17. Be2 {[%clk 0:01:42.7]} 17... Rad8 {[%clk 0:02:29.1]} 18. Nxd4
{[%clk 0:01:33.2]} 18... cxd4 {[%clk 0:02:27.9]} 19. Bxg4 {[%clk 0:01:32.3]}
19... dxe3 {[%clk 0:02:26.7]} 20. Bf3 {[%clk 0:00:56.6]} 20... e2 {[%clk
0:02:16.5]} 21. Bxe2 {[%clk 0:00:51.1]} 21... Qe5 {[%clk 0:02:13.9]} 22. Bd3
{[%clk 0:00:46.3]} 22... Qd4 {[%clk 0:02:09]} 23. Bc2 {[%clk 0:00:33.6]} 23...
Qxb2 {[%clk 0:01:56.7]} 24. Qb1 {[%clk 0:00:20.6]} 24... Qc3 {[%clk 0:01:56]}
25. Bb3 {[%clk 0:00:19.6]} 25... Rd2 {[%clk 0:01:44.5]} 26. Qc1 {[%clk
0:00:19.9]} 26... Qd4 {[%clk 0:01:43.4]} 27. c5 {[%clk 0:00:19.5]} 27... Ng4
{[%clk 0:01:24.4]} 28. Qc4 {[%clk 0:00:18.3]} 28... Qxc4 {[%clk 0:01:10.3]} 29.
Bxc4 {[%clk 0:00:19.2]} 29... Kf8 {[%clk 0:01:05.4]} 30. Rad1 {[%clk 0:00:18.2]}
30... Red8 {[%clk 0:01:01.7]} 31. Rxd2 {[%clk 0:00:18.6]} 31... Rxd2 {[%clk
0:01:02.6]} 32. h3 {[%clk 0:00:19.2]} 32... Ne5 {[%clk 0:01:02.3]} 33. Bb3
{[%clk 0:00:19.3]} 33... Nd3 {[%clk 0:01:00.1]} 34. c6 {[%clk 0:00:13.5]} 34...
bxc6 {[%clk 0:00:59.7]} 35. Bc4 {[%clk 0:00:13.2]} 35... Ne5 {[%clk 0:00:46.9]}
36. Bb3 {[%clk 0:00:13.3]} 36... Ke7 {[%clk 0:00:45.8]} 37. Re1 {[%clk
0:00:12.9]} 37... Kd6 {[%clk 0:00:34.8]} 38. f4 {[%clk 0:00:13]} 38... Nd3
{[%clk 0:00:34.9]} 39. Re4 {[%clk 0:00:12.8]} 39... Nc5 {[%clk 0:00:32.1]} 40.
Re8 {[%clk 0:00:08.9]} 40... Nxb3 {[%clk 0:00:30.2]} 41. axb3 {[%clk 0:00:09.4]}
41... Rb2 {[%clk 0:00:26.7]} 42. Ra8 {[%clk 0:00:08.9]} 42... Rxb3 {[%clk
0:00:24.1]} 43. Rxa7 {[%clk 0:00:09.1]} 43... Ke6 {[%clk 0:00:24.6]} 44. Rc7
{[%clk 0:00:08.1]} 44... Rc3 {[%clk 0:00:23.7]} 45. Kh2 {[%clk 0:00:06.2]} 45...
h5 {[%clk 0:00:23.7]} 46. g4 {[%clk 0:00:04.8]} 46... h4 {[%clk 0:00:22.9]} 47.
Kg2 {[%clk 0:00:04.4]} 47... g6 {[%clk 0:00:22.3]} 48. g5 {[%clk 0:00:03.8]}
48... c5 {[%clk 0:00:17.9]} 49. Rc6+ {[%clk 0:00:02.7]} 49... Kd7 {[%clk
0:00:17.3]} 50. Rf6 {[%clk 0:00:02.8]} 50... Ke7 {[%clk 0:00:16.9]} 51. Rc6
{[%clk 0:00:03.1]} 51... c4 {[%clk 0:00:16.7]} 52. Kh2 {[%clk 0:00:02.7]} 52...
Kd7 {[%clk 0:00:15.6]} 53. Rf6 {[%clk 0:00:02.2]} 53... Rc2+ {[%clk 0:00:15.4]}
54. Kg1 {[%clk 0:00:02.1]} 54... Ke7 {[%clk 0:00:16]} 55. Rc6 {[%clk 0:00:02.2]}
55... c3 {[%clk 0:00:16.1]} 56. Kf1 {[%clk 0:00:02.6]} 56... Kd7 {[%clk
0:00:15.4]} 57. Rc5 {[%clk 0:00:01]} 57... Kd6 {[%clk 0:00:14.9]} 58. Rc8 {[%clk
0:00:01.3]} 58... Rc1+ {[%clk 0:00:13.3]} 59. Ke2 {[%clk 0:00:01.2]} 59... Kd5
{[%clk 0:00:11.5]} 0-1